bitfinex-derivatives/quotes_ETHF0:USTF0_20240904
["timestamp","ask_amount","ask_price","bid_price","bid_amount"]
[1725471637032,3.2078,2456.5,2456.4,0.93507]
[1725471637531,3.2078,2456.5,2456.4,1.95276]
[1725471637921,5.85870251,2456.8,2456.7,0.40702]
[1725471638728,3.2078,2456.8,2456.7,0.40702]
[1725471639026,3.2078,2456.8,2456.7,5.49499]
[1725471639224,7.54860184,2457.4,2456.9,1.01749]
[1725471639225,3.2078,2457.1,2456.9,1.01749]
[1725471639422,3.2078,2457.1,2457.0,0.40698]
[1725471639820,3.61472,2457.4,2456.9,1.01745]
[1725471640020,3.2078,2457.4,2457.3,0.40693]
[1725471640623,0.41080412,2457.5,2457.4,0.40691]
[1725471640823,3.61860412,2457.5,2457.4,0.40691]
[1725471641230,3.21170412,2457.5,2457.4,0.40691]
[1725471642625,3.21170412,2457.5,2457.4,1.35611]
[1725471643029,3.21170412,2457.5,2457.4,2.37339]
[1725471643229,0.00390412,2457.5,2457.4,2.37339]
[1725471643425,0.00390412,2457.5,2457.4,1.35611]
[1725471643825,0.00390412,2457.5,2457.4,2.37339]
[1725471644223,4.51782,2458.0,2457.9,0.40683]
[1725471644424,3.40660545,2458.1,2457.9,0.40683]
[1725471644626,0.40681,2458.0,2457.9,0.40683]
[1725471644934,0.40681,2458.0,2457.9,0.40682]
[1725471644935,0.40682,2458.0,2457.9,0.40682]
[1725471645531,0.40683,2457.9,2457.8,0.40683]
[1725471645933,3.58407734,2458.0,2457.9,0.40683]
[1725471646638,3.17725734,2458.0,2457.9,0.40683]
[1725471646829,3.2078,2458.1,2458.0,0.40681]
[1725471646830,6.38505734,2458.1,2458.0,0.40681]
[1725471647227,3.2078,2458.1,2458.0,0.40681]
[1725471647926,3.2078,2458.1,2458.0,0.87101]
[1725471648123,3.2078,2458.1,2458.0,1.88804]
[1725471648536,0.00610639,2458.2,2458.1,0.40679]
[1725471649727,0.40679,2458.1,2458.0,0.871]
[1725471650038,0.40679,2458.1,2458.0,0.4642]
[1725471650226,0.40681,2458.0,2457.9,0.4542]
[1725471650428,10.37224734,2458.1,2457.7,0.91395911]
[1725471650629,0.40684,2457.8,2457.7,0.91395911]
[1725471651032,3.61464,2457.8,2457.7,0.50710911]
[1725471651229,3.2078,2457.8,2457.7,0.91396911]
[1725471651424,0.40682,2458.0,2457.9,0.40683]
[1725471651631,8.49505734,2458.1,2457.9,0.40683]
[1725471651632,6.79186734,2458.1,2457.9,0.40683]
[1725471651832,0.40681,2458.0,2457.9,0.40683]
[1725471652339,4.20032373,2458.2,2458.1,0.40679]
[1725471652340,0.00610639,2458.2,2458.1,0.40679]
[1725471653238,0.40679,2458.1,2458.0,0.8967]
[1725471653941,0.40679,2458.1,2458.0,0.4899]
[1725471654130,3.61459,2458.1,2458.0,0.4899]
[1725471655340,0.00610639,2458.2,2458.1,0.40679]
[1725471656134,0.40679,2458.1,2457.7,1.52422911]
[1725471656334,0.00610639,2458.2,2457.8,0.4872]
[1725471656534,0.4068,2458.1,2458.0,0.4068]
[1725471657236,0.41289639,2458.2,2458.1,0.40679]
[1725471657542,0.4068,2458.1,2458.0,0.4068]
[1725471657841,0.40684,2457.8,2457.7,0.50710911]
[1725471658034,0.40684,2457.8,2457.7,0.00610911]
[1725471658035,5.64886,2457.8,2457.7,0.00610911]
[1725471658233,9.71766,2457.8,2457.7,0.00610911]
[1725471658433,15.71766,2457.8,2457.7,0.00610911]
[1725471658934,1.01723,2457.6,2457.1,0.88956]
[1725471659132,3.61473,2457.3,2457.2,0.40694]
[1725471659332,3.61473,2457.3,2457.1,0.88955]
[1725471659333,0.40694,2457.2,2457.1,0.88955]
[1725471659538,0.407,2456.9,2456.7,0.40701]
[1725471659744,0.40699,2457.0,2456.6,0.4972]
[1725471659942,0.00610911,2457.0,2456.9,0.40698]
[1725471660347,0.00610911,2457.0,2456.9,5.49487]
[1725471660735,1.01718,2457.7,2457.6,0.40687]
[1725471660736,0.40686,2457.7,2457.6,0.40687]
[1725471660937,0.40687,2457.7,2457.5,0.40688]
[1725471661240,3.2078,2457.9,2457.8,0.40684]
[1725471661445,3.2078,2457.9,2457.3,1.01732]
[1725471661446,3.2078,2457.9,2457.7,0.40685]
[1725471661639,3.61464,2457.9,2457.7,0.40685]
[1725471661839,0.40684,2457.8,2457.6,0.40687]
[1725471662033,3.61464,2457.9,2457.3,1.01732]
[1725471662235,3.61464,2457.9,2457.4,1.01728]
[1725471662539,3.61464,2457.9,2457.8,0.40684]
[1725471662936,3.61464,2457.9,2457.7,0.40685]
[1725471663629,0.40686,2457.8,2457.6,0.40687]
[1725471663830,0.40684,2457.8,2457.6,0.40687]
[1725471664038,0.40686,2457.8,2457.6,0.40687]
[1725471664240,0.40687,2457.7,2457.5,0.88748]
[1725471664446,0.40688,2457.6,2457.4,0.4069]
[1725471664748,3.2078,2457.6,2457.5,0.40689]
[1725471665043,3.61463,2457.9,2457.4,1.01726]
[1725471665347,3.61463,2457.9,2457.8,0.40684]
[1725471665732,7.68343,2457.9,2457.8,0.40684]
[1725471665938,3.2078,2457.9,2457.8,0.40684]
[1725471666845,3.2078,2457.9,2457.8,5.38544]
[1725471667033,0.00610639,2458.0,2457.9,1.4239]
[1725471667244,0.00610639,2458.0,2457.9,5.4927]
[1725471667735,0.00610639,2458.0,2457.9,4.47563]
[1725471667936,0.00610639,2458.0,2457.9,0.40683]
[1725471668535,0.41291639,2458.0,2457.9,0.40683]
[1725471668937,0.00610639,2458.0,2457.9,0.40683]
[1725471669134,0.41291639,2458.0,2457.9,0.40683]
[1725471669435,0.00610639,2458.0,2457.8,1.31663]
[1725471669644,4.6317,2457.9,2457.2,4.22516]
[1725471669949,0.40688,2457.6,2457.5,0.40688]
[1725471670133,0.40686,2457.7,2457.6,0.40686]
[1725471670334,0.40688,2457.6,2457.5,0.40688]
[1725471670743,0.40687,2457.7,2457.6,0.40687]
[1725471671438,0.40686,2457.8,2457.7,0.40686]
[1725471671736,0.00610639,2458.0,2457.4,4.31047]
[1725471671944,0.40683,2457.9,2457.8,0.40683]
[1725471672641,0.00610639,2458.0,2457.9,0.40683]
[1725471673148,0.00610639,2458.0,2457.9,5.4927]
[1725471673451,0.00610639,2458.0,2457.9,5.9789]
[1725471673637,0.00610639,2458.0,2457.9,4.96183]
[1725471673840,0.00610639,2458.0,2457.9,0.4862]
[1725471674050,0.00610639,2458.0,2457.9,0.40683]
[1725471674051,0.41292639,2458.0,2457.9,0.40683]
[1725471676846,0.40683,2457.9,2457.8,0.40683]
[1725471677146,0.40684,2457.8,2457.7,0.4862]
[1725471677350,0.40688,2457.6,2457.5,0.40688]
[1725471678249,0.40689,2457.5,2457.4,1.3531]
[1725471678461,1.01717,2457.7,2457.4,0.9462]
[1725471678751,0.40689,2457.5,2457.4,1.3531]
[1725471679054,0.40689,2457.6,2457.5,0.40688]
[1725471682356,0.40689,2457.5,2457.4,0.9462]
[1725471682657,0.40689,2457.5,2457.4,0.89011]
[1725471683353,0.40688,2457.6,2457.5,0.40687]
[1725471684241,3.58413734,2457.6,2457.5,0.40687]
[1725471684646,0.40689,2457.5,2457.4,3.0001]
[1725471686245,3.17725734,2457.6,2457.5,0.40689]
[1725471686447,3.17725734,2457.6,2457.5,1.42413]
[1725471686654,3.17725734,2457.6,2457.5,6.51017]
[1725471686844,3.17725734,2457.7,2457.6,1.42408]
[1725471687045,3.17725734,2457.7,2457.6,3.53408]
[1725471688148,3.17725734,2457.8,2457.7,1.42402]
[1725471688348,3.17725734,2457.8,2457.7,2.44118]
[1725471688662,3.17725734,2457.8,2457.7,6.50998]
[1725471689454,7.82839823,2458.0,2457.9,1.4239]
[1725471689656,7.82839823,2458.0,2457.9,3.5339]
[1725471690155,7.31320376,2458.0,2457.9,8.61977]
[1725471690359,3.20220376,2458.0,2457.9,8.61977]
[1725471690750,0.95300376,2458.0,2457.9,8.61977]
[1725471690951,3.71129184,2458.1,2457.9,8.61977]
[1725471690952,3.71129184,2458.3,2458.2,1.42373]
[1725471691155,3.71129184,2458.5,2458.3,1.01691]
[1725471691354,0.40673,2458.5,2458.4,2.51674]
[1725471691550,4.11801184,2458.6,2458.5,0.40673]
[1725471692649,0.40672,2458.6,2458.5,0.40673]
[1725471694656,1.01687,2458.4,2458.3,0.00610911]
[1725471694859,8.35622594,2458.4,2458.3,0.00610911]
[1725471695061,8.69941,2458.4,2458.3,0.00610911]
[1725471695246,9.18661,2458.4,2458.3,0.00610911]
[1725471695556,13.42847363,2458.4,2458.3,0.00610911]
[1725471695759,14.44534363,2458.4,2458.3,0.00610911]
[1725471695958,13.42847363,2458.4,2458.3,0.00610911]
[1725471696152,19.42847363,2458.4,2458.3,0.00610911]
[1725471696352,19.42847363,2458.4,2457.8,2.51684]
[1725471696353,0.40683,2457.9,2457.8,2.51684]
[1725471696555,1.01702,2458.1,2457.9,0.40682]
[1725471696556,0.40682,2458.0,2457.9,0.40682]
[1725471697062,0.40681,2458.1,2458.0,0.4068]
[1725471698455,3.72490366,2458.2,2458.1,0.40679]
[1725471698651,5.12844274,2458.3,2458.2,0.40678]
[1725471698652,4.61148277,2458.3,2458.2,0.40678]
[1725471698858,4.20471277,2458.3,2458.2,0.40678]
[1725471699053,0.88656911,2458.3,2458.2,0.40678]
[1725471699654,0.47980911,2458.3,2458.2,0.40678]
[1725471699852,0.88656911,2458.3,2458.2,0.40678]
[1725471700054,0.40678,2458.2,2458.1,0.40678]
[1725471700252,0.88657911,2458.3,2458.2,0.40678]
[1725471700452,0.00610911,2458.3,2458.2,0.40678]
[1725471700657,0.41286911,2458.3,2458.2,0.40678]
[1725471700853,0.40679,2458.2,2458.1,0.40678]
[1725471701056,3.62067911,2458.3,2458.2,0.40678]
[1725471701259,0.00610911,2458.3,2458.2,0.40678]
[1725471701655,0.00610911,2458.3,2458.2,2.51678]
[1725471705262,2.24050366,2459.0,2458.8,0.40667]
[1725471705563,3.61447,2458.9,2458.5,2.11]
[1725471705768,4.09067,2458.9,2458.5,2.11]
[1725471705964,3.1905979,2458.7,2458.6,0.40671]
[1725471706759,8.94253363,2458.9,2458.6,0.40671]
[1725471707060,8.94253363,2458.9,2458.3,3.1269]
[1725471707061,8.94253363,2458.9,2458.1,1.47567]
[1725471707270,3.2078,2458.6,2458.2,1.01695]
[1725471707456,3.19107136,2458.5,2458.2,1.01695]
[1725471707658,3.19107136,2458.5,2458.4,0.40674]
[1725471708457,3.19107136,2458.5,2458.4,2.51674]
[1725471708655,3.19107136,2458.6,2458.5,0.40673]
[1725471708859,8.40226363,2458.9,2458.4,3.12687]
[1725471708860,3.19107136,2458.7,2458.4,3.12687]
[1725471709060,3.19107136,2458.7,2458.6,0.40671]
[1725471709667,0.40668,2458.8,2458.6,0.40671]
[1725471709970,3.19052395,2458.7,2458.6,0.40671]
[1725471710359,0.40669,2458.8,2458.6,0.40671]
[1725471710558,0.40669,2458.7,2458.6,0.40671]
[1725471710758,3.19042883,2458.7,2458.6,0.40671]
[1725471710954,0.40669,2458.8,2458.7,0.40669]
[1725471711158,0.40669,2458.8,2458.4,2.11]
[1725471711359,3.19036659,2458.7,2458.6,0.4067]
[1725471711762,3.19036659,2458.7,2458.6,1.42348]
[1725471711957,3.19036659,2458.8,2458.7,0.40669]
[1725471712163,5.57912363,2459.0,2458.8,0.40666]
[1725471712662,5.57912363,2459.0,2458.9,0.40666]
[1725471712663,0.4491,2459.0,2458.9,0.40666]
[1725471712866,3.2078,2459.2,2459.1,0.40663]
[1725471713367,6.39621617,2459.2,2459.1,0.40663]
[1725471713559,6.80282617,2459.2,2459.0,0.40663]
[1725471713764,6.80282617,2459.2,2458.9,2.11]
[1725471713765,6.39621617,2459.2,2459.1,0.40663]
[1725471713961,3.18841617,2459.2,2459.1,0.40663]
[1725471714666,4.12361617,2459.3,2459.2,0.40661]
[1725471714863,3.64211617,2459.3,2459.2,0.40661]
[1725471715063,0.4537,2459.3,2459.2,0.40661]
[1725471715266,3.18841617,2459.5,2459.4,0.40658]
[1725471715459,3.2078,2459.5,2459.4,0.40658]
[1725471715663,3.2078,2459.5,2459.3,2.5609]
[1725471715863,3.2078,2459.5,2459.4,0.40656]
[1725471717369,7.76231617,2459.6,2459.5,0.40656]
[1725471717565,4.5739,2459.6,2459.5,0.40656]
[1725471717763,4.05785617,2459.6,2459.5,0.40656]
[1725471717962,0.4629,2459.6,2459.5,0.40656]
[1725471719166,0.86945,2459.6,2459.4,0.40656]
[1725471719472,0.4629,2459.6,2459.5,0.40656]
[1725471719672,0.86944,2459.6,2459.5,0.40656]
[1725471720070,0.86944,2459.6,2459.4,0.40657]
[1725471720270,0.40656,2459.5,2459.4,0.40657]
[1725471720770,4.70476363,2459.6,2459.4,0.40657]
[1725471721374,3.71000905,2459.5,2459.4,0.40657]
[1725471722574,1.42308,2459.3,2459.2,0.00610911]
[1725471722762,5.66292855,2459.3,2459.2,0.00610911]
[1725471723078,5.66292855,2459.3,2458.8,5.3178]
[1725471723079,0.40669,2458.7,2458.6,0.4565]
[1725471723370,1.01678,2458.6,2458.0,3.2078]
[1725471723579,1.01678,2458.6,2458.2,0.40678]
[1725471723580,3.1807019,2458.3,2458.2,0.40678]
[1725471723768,3.1807019,2458.3,2458.2,2.51678]
[1725471724467,3.5874619,2458.3,2458.0,2.11610911]
[1725471724668,3.1807019,2458.2,2458.1,0.40679]
[1725471725271,3.1807019,2458.2,2458.0,2.52290911]
[1725471725870,3.5874819,2458.2,2458.0,2.11610911]
[1725471726073,3.1807019,2458.1,2458.0,2.11610911]
[1725471726272,3.5874919,2458.1,2458.0,2.11610911]
[1725471726578,4.11708352,2458.1,2458.0,2.11610911]
[1725471726971,3.71029352,2458.1,2458.0,2.11610911]
[1725471727272,0.40679,2458.1,2458.0,2.11610911]
[1725471727474,4.64712545,2458.1,2458.0,0.00610911]
[1725471727778,0.40679,2458.1,2458.0,0.00610911]
[1725471729982,0.86169,2458.1,2458.0,0.00610911]
[1725471730378,1.87868,2458.1,2458.0,0.00610911]
[1725471730696,0.86169,2458.1,2458.0,0.00610911]
[1725471730978,3.6681,2458.2,2458.0,2.11610911]
[1725471731281,3.6681,2458.2,2458.1,0.40679]
[1725471731868,3.61458,2458.2,2458.0,2.52290911]
[1725471732274,3.61459,2458.2,2458.0,0.00610911]
[1725471732481,3.61459,2458.2,2458.0,0.41290911]
[1725471732872,3.61459,2458.2,2458.1,0.40679]
[1725471733279,7.68259,2458.2,2458.1,0.40679]
[1725471734078,7.2758,2458.2,2458.1,0.40679]
[1725471734475,3.2078,2458.2,2458.1,0.40679]
[1725471736280,3.61458,2458.2,2458.1,0.40679]
[1725471736584,3.61459,2458.2,2458.0,0.41290911]
[1725471737385,0.40679,2458.1,2458.0,0.41290911]
[1725471737581,0.40679,2458.1,2458.0,0.00610911]
[1725471739787,3.61459,2458.2,2458.1,0.40679]
[1725471739987,3.2078,2458.2,2458.1,2.51679]
[1725471740388,4.59830911,2458.5,2458.4,0.40674]
[1725471740589,7.32490911,2458.5,2458.4,0.40674]
[1725471741095,7.32490911,2458.5,2458.4,1.42361]
[1725471741290,7.32490911,2458.5,2458.4,0.40674]
[1725471741291,0.00610911,2458.5,2458.4,0.40674]
[1725471741984,0.00610911,2458.5,2458.3,2.11]
[1725471742187,0.41283911,2458.5,2458.3,0.40675]
[1725471742385,0.89134,2458.4,2458.3,0.40675]
[1725471742586,0.4846,2458.4,2458.3,0.40675]
[1725471743687,0.89134,2458.4,2458.3,0.40675]
[1725471743893,0.4846,2458.4,2458.3,0.40675]
[1725471744083,0.00610911,2458.5,2458.4,0.40674]
[1725471745094,0.00610911,2458.5,2458.4,1.42361]
[1725471745300,0.00610911,2458.5,2458.4,0.40674]
[1725471746695,0.00610911,2458.5,2458.4,5.49161]
[1725471748096,0.00610911,2458.5,2458.4,0.40674]
[1725471748492,0.00610911,2458.5,2458.4,4.47474]
[1725471748800,0.00610911,2458.5,2458.3,3.57639]
[1725471748801,0.00610911,2458.5,2458.3,2.11]
[1725471749100,0.88263911,2458.5,2458.4,0.40674]
[1725471749793,0.00610911,2458.5,2458.4,0.40674]
[1725471752605,0.00610911,2458.5,2458.4,0.89254]
[1725471752794,0.00610911,2458.5,2458.4,1.90941]
[1725471754299,0.40674,2458.4,2458.3,2.51674]
[1725471754507,0.40674,2458.4,2458.3,0.40674]
[1725471754697,0.41285911,2458.5,2458.4,0.40674]
[1725471755298,0.40676,2458.4,2458.3,0.40675]
[1725471755495,0.40676,2458.3,2458.2,3.2078]
[1725471755700,0.40679,2458.1,2458.0,0.00610911]
[1725471755897,1.42378,2458.1,2458.0,0.00610911]
[1725471756210,0.40679,2458.1,2458.0,0.00610911]
[1725471757003,0.40679,2458.1,2458.0,0.41291911]
[1725471758001,5.49178,2458.1,2458.0,0.00610911]
[1725471758197,0.40686,2457.8,2457.5,0.4936]
[1725471758404,0.40689,2457.6,2457.5,0.40689]
[1725471758808,4.0688,2457.6,2457.2,0.4815]
[1725471759015,4.0688,2457.6,2457.3,0.40692]
[1725471759016,0.40691,2457.4,2457.3,0.40692]
[1725471759210,4.7604,2457.7,2457.2,0.4815]
[1725471759508,5.16727,2457.7,2457.6,0.40688]
[1725471759710,9.23607,2457.7,2457.6,0.40688]
[1725471759904,3.2078,2457.7,2457.6,0.40688]
[1725471760110,3.59019834,2458.0,2457.9,0.40683]
[1725471760298,0.40681,2458.0,2457.9,0.40683]
[1725471760503,0.40681,2458.0,2457.6,3.12718]
[1725471760504,0.40681,2458.0,2457.8,0.40683]
[1725471760713,0.40681,2458.0,2457.9,0.40683]
[1725471761014,0.40681,2458.0,2457.3,4.77071]
[1725471761015,1.01703,2458.0,2457.4,2.11]
[1725471761223,0.40688,2457.6,2457.5,0.40689]
[1725471761520,0.40688,2457.6,2457.3,3.2078]
[1725471761521,0.40691,2457.4,2457.3,3.2078]
[1725471761711,2.0699,2457.5,2457.3,3.61473]
[1725471761910,2.0699,2457.5,2457.4,0.40691]
[1725471761911,1.663,2457.5,2457.4,0.40691]
[1725471762113,0.40691,2457.4,2457.3,3.61472]
[1725471762311,1.663,2457.5,2457.3,3.2078]
[1725471762617,1.663,2457.5,2457.4,0.40691]
[1725471762618,2.0699,2457.5,2457.4,0.40691]
[1725471762820,6.1395,2457.5,2457.4,0.40691]
[1725471763126,0.40694,2457.2,2457.1,0.41306911]
[1725471763417,1.01757,2456.8,2456.3,0.40709]
[1725471763615,1.01757,2456.8,2456.1,0.40712]
[1725471763616,0.4071,2456.3,2456.1,0.40712]
[1725471763807,1.01761,2456.6,2455.9,0.5608]
[1725471763808,1.01765,2456.5,2455.9,0.5608]
[1725471764008,1.01769,2456.4,2455.9,0.5608]
[1725471764220,0.40712,2456.2,2455.9,0.96795]
[1725471764417,0.40712,2456.2,2456.0,0.40714]
[1725471764810,0.00610911,2456.3,2456.1,0.40712]
[1725471764811,0.41320911,2456.3,2456.1,0.40712]
[1725471765017,0.00610911,2456.3,2455.9,0.5608]
[1725471765214,0.00610911,2456.3,2456.2,3.53489]
[1725471765613,0.00610911,2456.3,2456.2,2.51711]
[1725471766217,0.00610911,2456.3,2456.2,3.53489]
[1725471766528,0.5484,2457.1,2456.9,0.40699]
[1725471766727,1.1195,2457.1,2457.0,0.40698]
[1725471766916,3.2078,2457.3,2457.2,0.40694]
[1725471769025,3.41054589,2457.3,2457.2,0.40694]
[1725471769921,3.2078,2457.3,2457.2,0.40694]
[1725471770920,0.57720911,2457.5,2457.4,0.40691]
[1725471771119,0.00610911,2457.5,2457.4,0.40691]
[1725471774831,0.00610911,2457.5,2457.4,1.42419]
[1725471775524,0.00610911,2457.5,2457.4,5.49379]
[1725471777023,0.00610911,2457.5,2457.4,4.47651]
[1725471777222,0.00610911,2457.5,2457.4,5.49379]
[1725471777424,0.00610911,2457.5,2457.4,6.51107]
[1725471777819,0.00610911,2457.5,2457.4,5.49379]
[1725471779323,0.00610911,2457.5,2457.4,0.40691]
[1725471779728,0.41299911,2457.5,2457.4,0.40691]
[1725471780623,0.00610911,2457.5,2457.4,0.40691]
[1725471780824,0.00610911,2457.5,2457.3,0.40692]
[1725471781019,0.41300911,2457.5,2457.2,0.00610911]
[1725471781225,0.00610911,2457.5,2457.4,0.40691]
[1725471781526,0.00610911,2457.5,2457.4,1.42419]
[1725471782023,0.00610911,2457.5,2457.3,0.40692]
[1725471782226,0.40691,2457.4,2457.3,0.40692]
[1725471782431,0.00610911,2457.5,2457.4,0.40691]
[1725471782819,0.00610911,2457.5,2457.4,1.42419]
[1725471783228,0.00610911,2457.5,2457.4,0.40691]
[1725471784831,0.00610911,2457.5,2457.4,1.42419]
[1725471785023,0.00610911,2457.5,2457.4,0.40691]
[1725471785626,0.00610911,2457.5,2457.4,1.42419]
[1725471785931,0.00610911,2457.5,2457.4,2.44147]
[1725471786928,0.00610911,2457.5,2457.4,12.51107]
[1725471787231,4.2881,2458.0,2457.4,12.51107]
[1725471787232,3.2078,2458.0,2457.9,0.40683]
[1725471788632,0.40688,2457.6,2457.5,3.61468]
[1725471788933,0.40691,2457.5,2457.4,0.4069]
[1725471789231,0.97601,2457.5,2457.4,0.4069]
[1725471789534,0.5691,2457.5,2457.4,0.4069]
[1725471789834,0.5691,2457.5,2457.2,1.02343911]
[1725471789835,0.5691,2457.5,2457.2,0.00610911]
[1725471790033,0.976,2457.5,2457.4,0.40691]
[1725471790329,0.40693,2457.3,2457.2,0.41303911]
[1725471790732,0.95292,2457.4,2457.3,0.40693]
[1725471791125,0.40693,2457.3,2457.2,0.41303911]
[1725471791326,4.6156,2457.4,2457.3,0.40693]
[1725471791327,0.95292,2457.4,2457.3,0.40693]
[1725471791735,4.6156,2457.4,2457.3,0.40693]
[1725471792031,3.2078,2457.6,2457.4,0.40691]
[1725471792332,3.61468,2457.6,2457.5,0.40689]
[1725471792538,3.2078,2457.6,2457.5,0.40689]
[1725471792836,3.61468,2457.6,2457.5,0.40689]
[1725471793027,3.2078,2457.6,2457.5,0.40689]
[1725471794930,0.97655,2457.8,2457.7,0.40686]
[1725471795236,0.40686,2457.7,2457.6,0.40686]
[1725471796830,0.40688,2457.6,2457.5,0.40688]
[1725471797230,0.40687,2457.7,2457.6,0.40687]
[1725471797734,0.40688,2457.6,2457.5,0.40688]
[1725471798140,0.4069,2457.5,2457.4,0.40691]
[1725471799035,0.40692,2457.4,2457.3,0.40692]
[1725471799437,0.93722,2457.4,2457.3,0.40692]
[1725471800145,0.40693,2457.3,2457.2,0.41303911]
[1725471800335,0.93363,2457.3,2457.2,0.41303911]
[1725471800840,0.93363,2457.3,2457.2,0.00610911]
[1725471800841,6.22359124,2457.3,2457.2,0.00610911]
[1725471801439,15.40696958,2457.3,2457.2,0.00610911]
[1725471801640,15.4155821,2457.3,2457.2,0.00610911]
[1725471801840,15.4155821,2457.3,2456.6,0.40703]
[1725471801841,0.40703,2456.7,2456.6,0.40703]
[1725471802037,0.40703,2456.7,2456.0,3.2078]
[1725471802038,0.40708,2456.4,2456.2,0.4071]
[1725471802240,0.40708,2456.4,2455.9,2.11]
[1725471802241,3.6149,2456.3,2455.9,0.5234]
[1725471802436,3.2078,2456.3,2456.1,0.40712]
[1725471803039,3.61489,2456.3,2456.0,0.41323911]
[1725471803336,3.2078,2456.3,2456.1,0.40712]
[1725471804137,3.2078,2456.3,2456.0,0.00610911]
[1725471804446,3.2078,2456.3,2456.1,0.40712]
[1725471804739,3.2078,2456.3,2456.0,0.41323911]
[1725471804949,0.40711,2456.2,2456.0,0.00610911]
[1725471805149,0.40712,2456.1,2456.0,0.00610911]
[1725471805440,4.47832,2456.1,2456.0,0.00610911]
[1725471806546,4.47832,2456.1,2455.2,1.35302706]
[1725471806547,13.73242,2456.1,2455.0,2.11]
[1725471806737,2.11,2455.6,2455.2,0.40726]
[1725471806934,0.5474,2455.5,2455.2,0.40726]
[1725471807144,0.2040596,2455.4,2455.2,0.40726]
[1725471807341,7.44783399,2456.0,2455.4,0.40723]
[1725471807639,7.44783399,2456.0,2455.1,5.845]
[1725471807640,0.95457,2455.9,2455.1,5.845]
[1725471807844,0.19886699,2455.8,2455.4,3.2078]
[1725471808044,9.55783399,2456.0,2455.9,0.40716]
[1725471808045,3.7348,2456.0,2455.9,0.40716]
[1725471808237,3.19223399,2456.3,2455.7,2.11]
[1725471808238,0.5474,2456.3,2455.7,2.11]
[1725471808550,0.5474,2456.3,2456.0,0.40713]
[1725471809935,0.5474,2456.3,2455.8,0.5647]
[1725471810245,0.5474,2456.3,2456.0,0.40713]
[1725471810434,0.5474,2456.3,2455.8,0.5647]
[1725471810633,0.5474,2456.3,2456.1,0.40711]
[1725471811247,0.5474,2456.3,2456.2,0.40711]
[1725471811435,3.21390911,2456.4,2456.3,0.40709]
[1725471811635,3.21390911,2456.4,2455.9,2.11]
[1725471811843,3.21390911,2456.4,2456.2,0.4071]
[1725471812840,3.21390911,2456.4,2455.9,2.11]
[1725471813048,3.21390911,2456.4,2456.2,0.4071]
[1725471813247,3.21390911,2456.4,2456.2,0.40711]
[1725471813550,3.21390911,2456.4,2456.2,0.4071]
[1725471814140,0.00610911,2456.4,2456.2,0.4071]
[1725471814341,3.21390911,2456.4,2456.2,0.4071]
[1725471815340,0.00610911,2456.4,2456.2,0.4071]
[1725471815740,3.21390911,2456.4,2456.3,0.40709]
[1725471819246,3.62098911,2456.4,2456.2,0.4071]
[1725471819948,3.21390911,2456.4,2456.0,0.5392]
[1725471820145,3.2078,2456.1,2455.5,0.5399]
[1725471820450,3.2078,2456.1,2455.6,0.4072]
[1725471820451,0.40716,2455.9,2455.6,0.4072]
[1725471820743,0.40716,2455.9,2455.7,0.40719]
[1725471820950,1.17934157,2456.0,2455.8,0.40717]
[1725471821253,0.77219157,2456.0,2455.8,0.40717]
[1725471821450,1.17933157,2456.0,2455.8,0.40717]
[1725471821647,0.5668,2456.0,2455.9,0.40716]
[1725471821850,0.40711,2456.2,2456.0,0.40713]
[1725471822050,1.9837,2456.3,2456.1,0.40712]
[1725471822444,6.0549,2456.3,2456.1,0.40712]
[1725471823749,9.2627,2456.3,2456.1,0.40712]
[1725471824458,8.8556,2456.3,2456.0,0.40713]
[1725471824647,0.40712,2456.2,2456.0,0.40714]
[1725471825156,5.80215,2456.3,2455.5,4.19757]
[1725471825448,0.40713,2456.1,2455.9,0.40715]
[1725471825649,0.20351726,2456.0,2455.9,0.40715]
[1725471826239,5.1915,2456.3,2456.2,0.40711]
[1725471826449,9.2627,2456.3,2456.2,0.40711]
[1725471827156,8.8556,2456.3,2456.2,0.40711]
[1725471827655,9.26269,2456.3,2455.8,1.01793]
[1725471827955,5.19149,2456.3,2455.8,1.01793]
[1725471828141,4.7844,2456.3,2456.0,1.01786]
[1725471828344,0.00610911,2456.4,2456.3,0.40709]
[1725471832850,0.41317911,2456.4,2456.2,0.40709]
[1725471833042,3.2078,2456.3,2456.2,0.40709]
[1725471833246,0.41317911,2456.4,2456.3,0.40709]
[1725471833651,0.00610911,2456.4,2456.3,0.40709]
[1725471835748,0.4071,2456.3,2456.1,0.40711]
[1725471835954,3.6149,2456.3,2456.2,0.40711]
[1725471836152,3.2078,2456.3,2455.8,0.5118]
[1725471836458,0.40717,2455.9,2455.7,0.40718]
[1725471836645,0.5088,2455.8,2455.7,0.40718]
[1725471837851,0.20248669,2456.0,2455.9,0.40716]
[1725471840259,0.20248669,2456.0,2455.6,3.2078]
[1725471840463,0.60963669,2456.0,2455.9,0.40716]
[1725471840858,0.20248669,2456.0,2455.9,0.40716]
[1725471841162,0.40714,2456.1,2455.9,0.40715]
[1725471841557,3.41555634,2456.0,2455.8,0.40716]
[1725471841854,0.40716,2455.9,2455.6,3.2078]
[1725471842055,0.40716,2455.9,2455.7,0.40719]
[1725471842056,0.5239,2455.8,2455.7,0.40719]
[1725471842361,0.40722,2455.5,2455.4,0.5545]
[1725471842564,4.22583,2455.6,2455.3,0.00610911]
[1725471842862,0.40724,2455.4,2455.3,0.00610911]
[1725471843064,0.40722,2455.5,2455.3,0.00610911]
[1725471843557,0.40722,2455.5,2455.3,0.41335911]
[1725471843759,0.40722,2455.5,2455.3,0.00610911]
[1725471844155,0.40724,2455.4,2455.3,0.00610911]
[1725471845050,0.40724,2455.4,2454.4,5.3178]
[1725471845051,0.40735,2454.8,2454.4,5.3178]
[1725471845258,2.11,2455.0,2454.5,0.5107]
[1725471845464,0.40737,2454.6,2454.5,0.5107]